bitfinex/quotes_SOLUSD_20240712
["timestamp","ask_amount","ask_price","bid_price","bid_amount"]
[1720779898797,20.0,134.58,134.55,7.4321]
[1720779899391,20.0,134.58,134.55,8.91835524]
[1720779900084,20.0,134.58,134.55,7.4321]
[1720779900285,20.0,134.58,134.54,26.014]
[1720779900499,20.98124334,134.62,134.55,22.7383]
[1720779900500,7.4298,134.6,134.55,22.7383]
[1720779900703,7.4298,134.6,134.55,30.1701]
[1720779901006,20.0,134.59,134.55,30.1701]
[1720779901211,27.43,134.59,134.55,30.1701]
[1720779902488,7.4305,134.58,134.55,22.7383]
[1720779902684,7.4312,134.57,134.55,22.7383]
[1720779902887,7.4307,134.58,134.55,22.7383]
[1720779904381,18.5738,134.6,134.55,22.7383]
[1720779904594,20.0,134.59,134.52,6.4315]
[1720779904804,18.5763,134.58,134.52,6.4315]
[1720779904987,7.4323,134.55,134.52,6.4315]
[1720779905183,7.4317,134.56,134.52,13.8653]
[1720779905904,27.4312,134.57,134.52,13.8653]
[1720779906209,20.0,134.57,134.54,7.4327]
[1720779906517,20.0,134.57,134.52,6.4315]
[1720779906518,7.4297,134.6,134.55,26.0121]
[1720779906688,27.43,134.59,134.55,26.0121]
[1720779907086,20.0,134.59,134.53,7.4328]
[1720779907397,18.5735,134.61,134.52,32.4483]
[1720779907588,7.4313,134.57,134.53,7.4331]
[1720779908190,7.4307,134.58,134.53,7.4331]
[1720779908598,7.4307,134.58,134.52,25.0147]
[1720779908599,7.4302,134.59,134.55,7.432]
[1720779908796,20.0,134.58,134.55,7.432]
[1720779909001,7.4295,134.6,134.56,7.4315]
[1720779909312,20.0,134.59,134.56,7.4315]
[1720779910010,20.0,134.6,134.56,7.4315]
[1720779910217,20.0,134.6,134.57,0.42326226]
[1720779910521,20.0,134.6,134.56,8.91756102]
[1720779910810,27.4295,134.6,134.56,8.91756102]
[1720779911211,7.43,134.59,134.55,26.011]
[1720779912098,27.4296,134.6,134.55,26.011]
[1720779912401,27.4296,134.6,134.56,8.91589343]
[1720779912596,27.4296,134.6,134.56,7.4315]
[1720779912795,7.4302,134.59,134.55,18.5791]
[1720779912984,20.0,134.6,134.55,18.5791]
[1720779913190,7.4299,134.59,134.55,26.0109]
[1720779913409,18.5694,134.63,134.56,7.4312]
[1720779913793,7.4297,134.6,134.55,26.011]
[1720779914211,7.4297,134.6,134.56,7.4314]
[1720779914400,7.429,134.61,134.57,7.431]
[1720779915219,6.7375616,134.65,134.6,7.4293]
[1720779916129,7.4278,134.63,134.59,13.5972]
[1720779916319,7.4278,134.63,134.59,24.741]
[1720779917105,25.3054616,134.65,134.59,6.1675]
[1720779917303,7.4288,134.62,134.58,15.5784]
[1720779917502,20.0,134.61,134.58,15.5784]
[1720779917900,20.0,134.61,134.58,23.0086]
[1720779918101,20.0,134.61,134.58,41.5841]
[1720779918315,20.0,134.61,134.58,34.1539]
[1720779918633,27.428,134.63,134.59,7.4298]
[1720779919115,20.0,134.63,134.6,7.4293]
[1720779919302,7.427,134.65,134.61,7.4288]
[1720779919503,20.0,134.64,134.6,7.4291]
[1720779919710,27.4273,134.64,134.6,7.4291]
[1720779920220,56.01253817,134.69,134.61,18.5714]
[1720779920424,7.4266,134.66,134.62,7.4281]
[1720779920811,7.4266,134.66,134.61,26.0]
[1720779921143,7.4266,134.66,134.62,7.4282]
[1720779921499,20.0,134.65,134.62,7.4282]
[1720779922121,20.0,134.65,134.61,26.0]
[1720779922838,7.4275,134.64,134.6,7.4292]
[1720779923126,20.0,134.65,134.59,26.0047]
[1720779923323,7.4273,134.64,134.6,7.4292]
[1720779923509,7.4265,134.66,134.61,18.5721]
[1720779923824,20.0,134.65,134.61,18.5721]
[1720779924433,20.0,134.65,134.62,7.4282]
[1720779925319,20.0,134.65,134.61,18.5721]
[1720779925320,20.0,134.65,134.63,7.4276]
[1720779925628,7.4258,134.67,134.63,7.4276]
[1720779925629,20.0,134.66,134.63,7.4276]
[1720779926344,27.4261,134.66,134.62,25.9976]
[1720779927034,20.0,134.66,134.63,7.4277]
[1720779927419,20.0,134.66,134.62,25.9975]
[1720779927624,20.0,134.66,134.63,7.4274]
[1720779928720,20.0,134.66,134.64,7.4271]
[1720779929033,7.4251,134.68,134.64,7.4271]
[1720779929034,20.0,134.67,134.64,7.4271]
[1720779929231,20.0,134.67,134.65,7.4266]
[1720779929440,47.69799105,134.73,134.62,6.4812]
[1720779929441,37.69799105,134.73,134.62,6.4812]
[1720779929609,7.4236,134.71,134.67,7.4255]
[1720779930533,7.4236,134.71,134.66,25.9907]
[1720779930707,27.4239,134.7,134.66,25.9907]
[1720779930907,27.4239,134.7,134.66,18.5649]
[1720779930908,7.4246,134.69,134.66,18.5649]
[1720779931935,7.4246,134.69,134.65,15.8238]
[1720779932336,27.4242,134.7,134.66,7.426]
[1720779932517,20.0,134.7,134.66,25.9899]
[1720779932836,20.0,134.72,134.65,23.2503]
[1720779933016,7.4248,134.69,134.65,23.2503]
[1720779933429,7.424,134.7,134.66,7.426]
[1720779933816,7.4247,134.69,134.65,23.2502]
[1720779934013,45.0,134.71,134.65,15.8238]
[1720779934217,7.4264,134.66,134.62,29.7331]
[1720779934419,18.5611,134.7,134.63,7.4277]
[1720779934620,20.0,134.69,134.63,7.4277]
[1720779935320,7.4258,134.67,134.63,7.4277]
[1720779935526,20.0,134.66,134.63,25.9969]
[1720779935940,7.46917134,134.71,134.65,18.5666]
[1720779936243,27.4239,134.7,134.66,7.4256]
[1720779936443,7.4244,134.69,134.65,25.993]
[1720779936751,27.425,134.68,134.65,18.5666]
[1720779936928,7.425,134.68,134.65,18.5666]
[1720779937119,20.0,134.67,134.65,18.5666]
[1720779937828,20.0,134.67,134.64,7.427]
[1720779938032,20.0,134.67,134.62,48.3023]
[1720779938230,7.4257,134.67,134.63,7.4277]
[1720779938543,20.0,134.66,134.63,7.4277]
[1720779938925,20.0,134.66,134.64,7.427]
[1720779939138,20.0,134.67,134.63,18.568]
[1720779939445,20.0,134.7,134.63,18.568]
[1720779939619,7.46917134,134.71,134.65,25.993]
[1720779939821,7.4243,134.7,134.65,25.993]
[1720779940747,7.4245,134.69,134.65,25.993]
[1720779941115,20.0,134.68,134.65,25.993]
[1720779942554,27.4253,134.68,134.64,7.427]
[1720779942931,20.0,134.68,134.65,7.4266]
[1720779944421,7.4241,134.7,134.65,7.4266]
[1720779944750,20.0,134.69,134.66,7.4259]
[1720779944916,7.4241,134.7,134.66,7.4259]
[1720779945546,7.4241,134.7,134.62,22.305]
[1720779945547,7.4233,134.71,134.67,7.4252]
[1720779945924,7.423,134.72,134.67,25.9884]
[1720779946123,20.0,134.71,134.68,7.4248]
[1720779946722,26.4152,134.71,134.62,22.305]
[1720779946933,7.4262,134.66,134.62,22.305]
[1720779947115,7.4268,134.65,134.62,22.305]
[1720779947319,7.4263,134.66,134.62,22.305]
[1720779947520,7.4263,134.66,134.62,29.7333]
[1720779947843,7.4262,134.66,134.62,22.305]
[1720779948030,7.4262,134.66,134.62,29.7328]
[1720779948435,7.4257,134.67,134.63,7.4276]
[1720779948636,20.0,134.66,134.63,7.4276]
[1720779948819,20.0,134.66,134.64,7.4271]
[1720779949021,32.44407134,134.71,134.63,7.4275]
[1720779949022,27.4256,134.67,134.63,7.4275]
[1720779950054,27.4256,134.67,134.63,25.9964]
[1720779950746,20.0,134.67,134.63,25.9964]
[1720779951131,20.0,134.67,134.64,7.4271]
[1720779952427,27.4256,134.67,134.63,18.5689]
[1720779952734,27.4256,134.67,134.63,25.9965]
[1720779952935,20.0,134.67,134.64,7.4269]
[1720779954139,20.0,134.67,134.63,18.5689]
[1720779954450,7.4258,134.67,134.63,25.9966]
[1720779954973,7.4262,134.66,134.62,29.7331]
[1720779955122,27.4262,134.66,134.62,29.7331]
[1720779955826,20.0,134.66,134.62,29.7331]
[1720779956134,20.0,134.66,134.62,22.305]
[1720779956351,27.4255,134.67,134.62,22.305]
[1720779956885,7.4264,134.66,134.62,29.7331]
[1720779960385,7.4268,134.65,134.62,22.305]
[1720779960554,7.4273,134.64,134.62,22.305]
[1720779960870,7.4273,134.64,134.59,7.4294]
[1720779960871,7.4274,134.64,134.59,7.4294]
[1720779961474,7.4274,134.64,134.6,7.4294]
[1720779961862,7.4277,134.63,134.58,35.0634]
[1720779962050,7.4287,134.62,134.58,42.4936]
[1720779962246,7.4287,134.62,134.58,35.0634]
[1720779962871,7.4288,134.61,134.58,16.4882]
[1720779963069,7.4288,134.61,134.57,7.4308]
[1720779964384,7.4285,134.62,134.57,7.4308]
[1720779964953,7.4285,134.62,134.58,7.4303]
[1720779965666,7.4275,134.64,134.53,15.5122]
[1720779965863,20.0,134.63,134.6,7.4294]
[1720779966255,20.0,134.63,134.6,26.0027]
[1720779966454,27.4272,134.64,134.6,26.0027]
[1720779966760,20.0,134.64,134.61,7.4288]
[1720779967380,20.0,134.65,134.61,7.4288]
[1720779967576,7.4257,134.67,134.62,18.5701]
[1720779967979,7.4257,134.67,134.63,7.4274]
[1720779968175,18.51310222,134.7,134.61,0.83945503]
[1720779968480,12.43580222,134.7,134.61,0.83945503]
[1720779968678,10.0,134.7,134.61,0.83945503]
[1720779968875,7.4254,134.68,134.64,18.5678]
[1720779969057,20.0,134.67,134.64,18.5678]
[1720779969459,7.4256,134.67,134.64,18.5678]
[1720779969877,7.4252,134.68,134.64,18.5678]
[1720779970686,7.4235,134.71,134.66,18.565]
[1720779970987,7.4235,134.71,134.66,25.9909]
[1720779971193,7.4229,134.72,134.67,15.9808]
[1720779971355,30.02889706,134.74,134.7,7.4237]
[1720779971356,37.45069706,134.74,134.7,7.4237]
[1720779971692,7.4218,134.74,134.7,7.4237]
[1720779971980,7.4218,134.74,134.68,18.5621]
[1720779971981,7.4224,134.73,134.69,7.4243]
[1720779972849,26.02077134,134.76,134.69,7.4243]
[1720779973054,7.4214,134.75,134.71,7.4231]
[1720779973460,7.4214,134.75,134.7,7.4237]
[1720779973978,7.4219,134.74,134.7,7.4237]
[1720779974182,7.422,134.74,134.69,7.4242]
[1720779974361,7.4225,134.73,134.67,15.9808]
[1720779974572,27.4231,134.72,134.68,7.4249]
[1720779974775,27.4231,134.72,134.67,23.4061]
[1720779975087,7.4234,134.71,134.67,23.4061]
[1720779975290,27.4229,134.72,134.68,7.4248]
[1720779975663,7.4234,134.71,134.67,23.4061]
[1720779976265,7.424,134.7,134.67,15.9808]
[1720779976466,20.0,134.72,134.64,7.4269]
[1720779976688,7.425,134.68,134.64,7.4269]
[1720779977088,7.4246,134.69,134.65,7.4266]
[1720779977388,45.0,134.71,134.63,16.3819]
[1720779977389,20.0,134.68,134.63,16.3819]
[1720779977588,7.4261,134.66,134.63,16.3819]
[1720779977962,7.4272,134.64,134.6,26.0017]
[1720779978160,7.428,134.63,134.59,29.5363]
[1720779978367,7.4276,134.64,134.59,29.5363]
[1720779978573,7.4277,134.63,134.59,48.111]
[1720779979161,7.4277,134.63,134.59,40.6811]
[1720779979581,10.0,134.66,134.59,22.1064]
[1720779979582,7.4285,134.62,134.59,22.1064]
[1720779980461,7.4279,134.63,134.59,22.1064]
[1720779981292,7.4283,134.62,134.59,22.1064]
[1720779981594,7.4283,134.62,134.58,7.4305]
[1720779981777,7.4279,134.63,134.58,7.4305]
[1720779981977,7.4279,134.63,134.56,34.4273]
[1720779981978,20.0,134.62,134.59,7.4298]
[1720779982201,20.0,134.62,134.56,15.8491]
[1720779982202,20.0,134.62,134.6,7.4293]
[1720779982495,17.46917134,134.68,134.6,7.4293]
[1720779982496,7.4267,134.65,134.6,26.0027]
[1720779982795,20.0,134.64,134.6,26.0027]
[1720779983179,27.4272,134.64,134.6,26.0027]
[1720779983380,17.46917134,134.68,134.61,7.4287]
[1720779983381,7.4266,134.65,134.61,7.4287]
[1720779983593,7.46917134,134.68,134.6,18.5734]
[1720779983594,7.4262,134.66,134.62,7.428]
[1720779984000,7.4256,134.67,134.56,15.8491]
[1720779984193,7.4256,134.67,134.57,45.0]
[1720779984502,7.4256,134.67,134.63,7.4274]
[1720779984705,6.7375616,134.69,134.58,6.5744]
[1720779984873,16.7375616,134.69,134.58,6.5744]
[1720779985074,7.4265,134.66,134.61,7.4284]
[1720779985275,7.4265,134.66,134.58,6.5744]
[1720779985509,7.4265,134.66,134.62,7.4279]
[1720779985717,7.4257,134.67,134.62,7.4279]
[1720779985889,20.0,134.66,134.62,7.4279]
[1720779987302,20.0,134.66,134.63,16.2074]
[1720779987518,27.4261,134.66,134.63,16.2074]
[1720779988012,7.4268,134.65,134.63,16.2074]
[1720779988506,7.4272,134.64,134.59,24.0853]
[1720779988721,7.428,134.63,134.59,24.0853]
[1720779989690,7.4274,134.64,134.59,24.0853]
[1720779990423,45.0,134.67,134.59,16.6559]
[1720779990718,27.4279,134.63,134.59,24.0858]
[1720779991102,7.4283,134.62,134.59,16.6559]
[1720779991618,27.4279,134.63,134.59,24.0858]
[1720779992600,20.0,134.63,134.6,7.4291]
[1720779993227,20.0,134.63,134.6,7.4292]
[1720779993416,7.4268,134.65,134.6,7.4292]
[1720779993597,20.0,134.64,134.6,7.4292]
[1720779994109,27.4272,134.64,134.6,7.4292]
[1720779994818,20.0,134.64,134.61,7.4287]
[1720779995314,20.0,134.64,134.59,16.6559]
[1720779995522,30.96640184,134.71,134.62,25.9982]
[1720779995825,28.5613,134.69,134.59,35.2296]
[1720779996504,7.4279,134.63,134.59,16.6559]
[1720779996903,7.4279,134.63,134.59,24.0858]
[1720779997098,7.4279,134.63,134.59,16.6559]
[1720779997299,7.4284,134.62,134.59,16.6559]
[1720779997604,7.4294,134.6,134.57,18.5763]
[1720779997806,18.5686,134.64,134.57,26.0073]
[1720779998007,20.0,134.63,134.58,7.43]
[1720779998216,7.46917134,134.69,134.55,22.3409]
[1720779998417,6.6082,134.7,134.56,15.772]
[1720779998733,9.83020184,134.71,134.66,7.4259]
[1720779999021,7.4229,134.72,134.67,7.4253]
[1720779999203,42.28484039,134.73,134.68,7.4249]
[1720779999404,34.86214039,134.73,134.68,7.4249]
[1720779999618,34.86214039,134.73,134.69,7.4243]
[1720779999824,34.86214039,134.73,134.66,1.47867722]
[1720779999994,34.86214039,134.73,134.69,7.4242]
[1720780000199,7.4228,134.72,134.68,7.4249]
[1720780000400,49.02200199,134.73,134.69,7.4244]
[1720780000620,14.1598616,134.73,134.69,7.4244]
[1720780001506,7.4229,134.72,134.68,25.9869]
[1720780001929,7.4224,134.73,134.68,25.9869]
[1720780002137,20.0,134.72,134.68,25.9869]
[1720780002637,20.0,134.72,134.69,7.4241]
[1720780002812,27.4222,134.73,134.69,7.4241]
[1720780003233,35.6934141,134.72,134.7,7.4239]
[1720780003410,7.4213,134.75,134.71,7.4233]
[1720780003919,7.4213,134.75,134.7,7.4237]
[1720780004237,6.7375616,134.78,134.7,18.5594]
[1720780004238,7.4222,134.73,134.7,18.5594]
[1720780004434,7.4222,134.73,134.69,15.4068]
[1720780004806,7.4218,134.74,134.7,7.4238]
[1720780005103,7.4213,134.75,134.7,7.4238]
[1720780005419,7.4213,134.75,134.69,15.4068]
[1720780005420,7.4213,134.75,134.71,7.4233]
[1720780006329,7.4206,134.76,134.72,7.4227]
[1720780006530,12.47860056,134.79,134.69,15.4068]
[1720780006531,65.0,134.75,134.69,15.4068]
[1720780006843,20.0,134.75,134.71,6.0962]
[1720780007137,20.0,134.76,134.73,7.422]
[1720780007434,7.4196,134.78,134.73,7.422]
[1720780007435,20.0,134.77,134.73,7.422]
[1720780008034,27.4201,134.77,134.73,7.422]
[1720780008324,27.4201,134.77,134.72,7.4226]
[1720780008530,20.0,134.77,134.71,6.0962]
[1720780009440,20.0,134.77,134.73,7.4221]
[1720780009612,7.6953439,134.8,134.75,7.421]
[1720780009808,0.832633,134.82,134.75,7.421]
[1720780010019,7.4194,134.79,134.74,7.4216]
[1720780010225,19.376233,134.82,134.71,6.0962]
[1720780010431,10.0,134.81,134.71,6.0962]
[1720780010725,7.4204,134.77,134.71,6.0962]
[1720780010926,18.5463,134.8,134.71,6.0962]
[1720780011106,45.0,134.79,134.71,6.0962]
[1720780011318,20.0,134.78,134.71,6.0962]
[1720780011521,20.0,134.78,134.72,7.4226]
[1720780011522,7.42,134.77,134.72,7.4226]
[1720780011716,7.4206,134.76,134.72,7.4226]
[1720780011927,7.4216,134.75,134.71,6.0962]
[1720780012320,20.0,134.78,134.71,13.5194]
[1720780012321,7.4207,134.76,134.71,13.5194]
[1720780012540,7.4211,134.75,134.71,13.5194]
[1720780012748,7.4218,134.74,134.71,6.0962]
[1720780012923,20.0,134.78,134.71,13.5192]
[1720780013123,7.421,134.76,134.71,13.5192]
[1720780013336,45.0,134.75,134.7,7.4238]
[1720780013621,7.4213,134.75,134.7,7.4238]
[1720780013840,45.0,134.74,134.7,7.4238]
[1720780014046,7.4213,134.75,134.71,7.4233]
[1720780014542,45.0,134.77,134.73,7.4218]
[1720780014717,20.0,134.76,134.72,7.4227]
[1720780015083,20.0,134.76,134.73,7.4221]
[1720780015536,20.0,134.76,134.72,7.4226]
[1720780015842,27.4207,134.76,134.71,7.4231]
[1720780016040,27.4207,134.76,134.72,7.4227]
[1720780016658,20.0,134.76,134.71,7.4232]
[1720780017030,7.4205,134.77,134.73,7.4221]
[1720780017231,20.0,134.76,134.73,7.4221]
[1720780017430,20.0,134.76,134.74,7.4215]
[1720780017838,7.46917134,134.81,134.72,7.4227]
[1720780017839,20.0,134.77,134.72,7.4227]
[1720780018136,26.01387134,134.81,134.71,7.423]
[1720780018137,18.5481,134.79,134.71,7.423]
[1720780018343,20.0,134.78,134.71,7.423]
[1720780018636,7.4215,134.75,134.7,7.4237]
[1720780019180,20.0,134.74,134.7,7.4237]
[1720780019549,27.4218,134.74,134.69,22.8311]
[1720780019749,7.4231,134.72,134.69,15.4068]
[1720780019950,7.4223,134.73,134.69,15.4068]
[1720780020178,18.5503,134.77,134.69,15.4068]
[1720780020179,7.423,134.72,134.69,15.4068]
[1720780020379,20.0,134.71,134.69,15.4068]
[1720780020872,27.4237,134.71,134.67,18.5628]
[1720780021185,7.4244,134.7,134.66,15.9601]
[1720780021783,7.4245,134.69,134.66,15.9601]
[1720780022075,7.4241,134.7,134.66,15.9601]
[1720780022269,27.4235,134.71,134.66,23.3861]
[1720780022449,27.4235,134.71,134.66,41.9513]
[1720780022650,7.4244,134.69,134.66,15.9601]
[1720780022878,7.4244,134.69,134.64,7.4269]
[1720780023251,20.0,134.68,134.65,18.5661]
[1720780023454,7.424,134.7,134.66,7.4259]
[1720780023668,20.0,134.69,134.66,7.4259]
[1720780024191,27.4245,134.69,134.65,25.9925]
[1720780024486,20.0,134.69,134.62,15.4865]
[1720780024654,7.4246,134.69,134.64,7.4268]
[1720780024857,20.0,134.68,134.65,7.4266]
[1720780025050,20.0,134.7,134.62,15.4865]
[1720780025560,7.4231,134.72,134.67,7.4253]
[1720780025753,65.0,134.71,134.67,25.9887]
[1720780026176,7.4242,134.7,134.65,7.4264]
[1720780026377,20.0,134.69,134.65,7.4264]
[1720780026572,27.4246,134.69,134.65,7.4264]
[1720780026966,27.4246,134.69,134.64,25.9939]
[1720780027190,7.4252,134.68,134.64,18.5669]
[1720780027381,27.4246,134.69,134.64,25.994]
[1720780028300,20.0,134.69,134.64,18.5669]
[1720780029093,20.0,134.69,134.62,15.4865]
[1720780029285,7.4229,134.72,134.67,7.4253]
[1720780029486,27.4234,134.71,134.66,25.9903]
[1720780029790,7.4239,134.7,134.66,25.9903]
[1720780029993,27.4234,134.71,134.66,25.9903]
[1720780030172,7.423,134.72,134.67,7.4254]
[1720780031164,7.4223,134.73,134.68,7.4248]
[1720780031580,6.7375616,134.76,134.68,18.5621]
[1720780031789,7.422,134.74,134.69,7.4243]
[1720780031982,7.423,134.72,134.68,18.5621]
[1720780032173,10.0,134.76,134.65,18.5653]
[1720780032366,10.0,134.76,134.64,6.4313]
[1720780032367,7.4255,134.67,134.64,6.4313]
[1720780032691,7.4255,134.67,134.62,41.4841]
[1720780032865,7.4251,134.68,134.63,7.4275]
[1720780033380,7.4256,134.67,134.63,7.4275]
[1720780034190,7.4256,134.67,134.62,41.4841]
[1720780034386,7.4256,134.67,134.62,34.0561]
[1720780035089,7.427,134.65,134.62,15.4865]
[1720780035270,7.4272,134.64,134.6,7.4294]
[1720780035689,7.4272,134.64,134.59,26.0035]
[1720780036069,7.4267,134.65,134.6,7.4293]
[1720780036468,20.0,134.64,134.6,7.4293]
[1720780038672,20.0,134.64,134.61,7.4288]
[1720780038997,7.4262,134.66,134.61,7.4288]
[1720780038998,20.0,134.65,134.61,7.4288]
[1720780039296,20.0,134.65,134.62,7.4281]
[1720780039483,20.0,134.66,134.62,7.4281]
[1720780039897,27.4262,134.66,134.61,7.4286]
[1720780040194,7.4267,134.65,134.6,26.0013]
[1720780040397,20.0,134.66,134.6,26.0013]
[1720780040583,20.0,134.68,134.6,26.0013]
[1720780041090,7.4266,134.65,134.6,26.0013]
[1720780041396,7.4263,134.66,134.61,7.4287]
[1720780041602,20.0,134.65,134.61,7.4287]
[1720780042285,27.4266,134.65,134.6,26.0013]
[1720780042687,7.4275,134.64,134.6,18.5721]
[1720780043109,27.4268,134.65,134.6,26.0014]
[1720780043283,7.4268,134.65,134.6,26.0014]
[1720780044491,7.4268,134.65,134.61,7.4288]
[1720780044705,7.4262,134.66,134.61,7.4288]
[1720780044886,20.0,134.65,134.62,18.5705]
[1720780045089,14.1621616,134.69,134.64,7.4272]
[1720780045590,14.1621616,134.69,134.64,23.6049]
[1720780045791,14.1621616,134.69,134.65,7.4266]
[1720780046097,6.7375616,134.69,134.65,7.4266]
[1720780046311,7.4239,134.7,134.66,7.4259]
[1720780046609,7.4239,134.7,134.65,25.9929]
[1720780046994,7.4245,134.69,134.65,18.5665]
[1720780047901,7.4246,134.69,134.64,16.1777]
[1720780048107,7.4241,134.7,134.65,7.4266]
[1720780048287,20.0,134.69,134.66,7.426]
[1720780048487,20.0,134.7,134.66,7.426]
[1720780048689,7.424,134.7,134.65,7.4265]
[1720780048894,7.4253,134.68,134.64,34.7454]
[1720780049497,7.4246,134.69,134.64,42.1724]
[1720780050006,7.4246,134.69,134.65,7.4266]
[1720780050308,7.424,134.7,134.65,7.4266]
[1720780050624,27.4244,134.69,134.65,7.4266]
[1720780051002,20.0,134.69,134.65,7.4266]
[1720780051202,20.0,134.69,134.66,7.426]
[1720780051823,20.0,134.7,134.66,7.426]
[1720780052808,27.4239,134.7,134.66,7.426]
[1720780053123,27.4239,134.7,134.65,7.4264]
[1720780055025,27.4239,134.7,134.66,7.4259]
[1720780055333,27.4239,134.7,134.65,7.4263]
[1720780055627,6.7375616,134.73,134.66,18.5652]
[1720780055803,7.4223,134.73,134.68,25.987]
[1720780056005,7.4223,134.73,134.69,6.073]
[1720780056313,7.4223,134.73,134.69,13.4974]
[1720780056547,7.4219,134.74,134.7,15.1543]
[1720780057148,7.4223,134.73,134.7,15.1543]
[1720780059373,7.4219,134.74,134.7,15.1543]
[1720780059666,20.0,134.73,134.7,22.578]
[1720780060078,7.4206,134.76,134.7,15.1543]
[1720780060282,7.4206,134.76,134.71,7.4231]
[1720780061075,6.7375616,134.81,134.7,15.1543]
[1720780061397,7.419,134.79,134.74,7.4213]
[1720780061685,7.4196,134.78,134.73,7.4221]
[1720780062277,7.4191,134.79,134.74,7.4216]
[1720780062473,7.4195,134.78,134.73,7.4221]
[1720780063259,7.4191,134.79,134.74,7.4215]
[1720780063458,20.0,134.78,134.74,7.4215]
[1720780064182,20.0,134.78,134.71,45.0]
[1720780064183,20.0,134.78,134.76,15.235]
[1720780064384,20.0,134.79,134.76,15.235]
[1720780064881,6.7375616,134.81,134.76,22.655]
[1720780065275,14.1554616,134.81,134.76,22.655]
[1720780065791,7.4184,134.8,134.76,15.235]
[1720780066585,20.0,134.79,134.76,22.6555]
[1720780067179,20.0,134.8,134.77,7.4199]
[1720780067376,0.832633,134.82,134.79,7.4187]
[1720780067776,0.832633,134.82,134.81,29.1753]
[1720780069194,0.832633,134.82,134.81,21.7575]
[1720780070180,0.832633,134.82,134.81,29.1753]
[1720780071858,0.832633,134.82,134.81,21.7575]
[1720780072361,0.832633,134.82,134.78,16.5202]
[1720780072986,8.250233,134.82,134.78,16.5202]
[1720780073586,0.832633,134.82,134.78,23.9394]
[1720780073897,20.832633,134.82,134.79,7.4189]
[1720780074067,20.832633,134.82,134.78,23.9395]
[1720780075068,20.832633,134.82,134.79,7.4189]
[1720780075482,20.832633,134.82,134.78,16.5202]
[1720780075687,0.832633,134.82,134.79,7.4188]
[1720780075895,0.832633,134.82,134.78,23.9395]
[1720780076094,28.250033,134.82,134.78,16.5202]
[1720780076305,8.250033,134.82,134.78,16.5202]
[1720780077113,0.832633,134.82,134.78,23.9396]
[1720780077410,20.832633,134.82,134.79,7.4186]
[1720780077582,20.832633,134.82,134.8,7.4182]
[1720780077916,20.832633,134.82,134.79,7.4188]
[1720780078214,0.832633,134.82,134.79,7.4188]
[1720780078411,0.832633,134.82,134.8,7.4182]
[1720780079412,0.832633,134.82,134.81,7.4178]
[1720780079791,0.832633,134.82,134.8,7.4181]
[1720780079995,0.832633,134.82,134.79,7.4188]
[1720780080405,0.832633,134.82,134.8,7.4182]
[1720780081427,0.832633,134.82,134.81,7.4178]
[1720780081802,0.832633,134.82,134.8,7.4181]
[1720780082020,0.832633,134.82,134.81,7.4178]
[1720780082512,7.4125,134.91,134.86,7.4147]
[1720780082719,7.4129,134.9,134.86,7.4147]
[1720780083302,7.4129,134.9,134.78,16.5202]